Cogmind - Beta 13 @@@ ROGUE MODE // 2024.05.27 @ 13:58:39 Player: Xorko Result: Destroyed by S-27 Virus with Autogun Performance ------------- Evolutions (4) 2000 Regions Visited (6) 1200 Robots Destroyed (88) 440 Value Destroyed (2671) 2671 Prototype IDs (4) 80 Alien Tech Used (0) 0 Bonus (0) 0 TOTAL SCORE: 6391 Bonus ------- None Cogmind --------- Core Integrity 0/850 Matter 256/300 Energy 100/100 System Corruption 3% Temperature Cool (1) Movement Hovering (60) Location -6/Factory Parts ------- > --- POWER (1) -------- (None) > --- PROPULSION (4) --- Airjet > --- UTILITY (6) ------ Enhanced Optical Array Advanced Signal Interpreter Terrain Scan Processor Improved Targeting Computer Improved Light Armor Plating > --- WEAPON (4) ------- (None) > --- INVENTORY (5) ---- (None) Peak State ------------ > --- POWER ------------ Improved Deuterium Engine > --- PROPULSION ------- Flexi-carbon Leg Gravmag System Gravmag Array > --- UTILITY ---------- Large Storage Unit Improved Sensor Array Improved Signal Interpreter Improved Targeting Computer Hardened Light Armor Plating Improved Medium Armor Plating > --- WEAPON ----------- Advanced Beam Rifle Gatling Laser Heavy Plasma Cannon Precision Assault Rifle > --- INVENTORY -------- Deuterium Engine Nuclear Core Nuclear Core Airjet Improved Heat Sink High-capacity Storage Unit Advanced Targeting Computer Medium Armor Plating Medium Armor Plating Improved Light Armor Plating EM Shotgun Minigun Rocket Launcher [Rating: 59] Favorites ----------- Power Ion Engine Engine Ion Engine Power Core Nuclear Core Propulsion Aluminum Leg Treads Light Treads Leg Aluminum Leg Hover Unit Gravmag System Utility Large Storage Unit Device Improved Sensor Array Storage Large Storage Unit Processor Improved Signal Interpreter Protection Power Shielding Weapon Advanced Beam Rifle Energy Gun Advanced Beam Rifle Energy Cannon Beam Cannon Ballistic Gun Light Assault Rifle Launcher Rocket Launcher Build | -11 -10 -9 -9 -8 -7 -6 ------- Run | Yrd Mat Mat Min Mat Fac Fac Slots Evolved 8 | . . 2 . 2 2 2 Power . | . . . . . . . Propulsion 2 | . . 1 . 1 . . Utility 4 | . . 1 . . 2 1 Weapon 2 | . . . . 1 . 1 Parts Attached 113 | 6 16 20 4 25 10 32 Power 15 | 1 5 2 . 1 1 5 Engine 14 | 1 5 2 . 1 1 4 Core 1 | . . . . . . 1 Reactor . | . . . . . . . Propulsion 34 | 2 2 11 . 11 1 7 Treads 8 | . 2 6 . . . . Leg 21 | 2 . 5 . 11 1 2 Wheel . | . . . . . . . Hover 5 | . . . . . . 5 Flight . | . . . . . . . Utility 27 | 1 4 3 . 5 3 11 Device 4 | . 2 . . 1 1 . Storage 5 | 1 2 . . 2 . . Processor 5 | . . . . . 1 4 Hackware . | . . . . . . . Protection 13 | . . 3 . 2 1 7 Artifact . | . . . . . . . Weapon 37 | 2 5 4 4 8 5 9 Energy Gun 15 | . 5 1 1 2 3 3 Energy Cannon 4 | . . 1 1 . . 2 Ballistic Gun 11 | 2 . 1 . 5 1 2 Ballistic Cannon . | . . . . . . . Launcher 7 | . . 1 2 1 1 2 Special Weapon . | . . . . . . . Impact Weapon . | . . . . . . . Slashing Weapon . | . . . . . . . Piercing Weapon . | . . . . . . . Special Melee Weapon . | . . . . . . . Unidentified Prototypes 2 | . . . . 1 1 . Parts Lost 23 | . 1 2 1 1 . 18 Power 4 | . 1 . . . . 3 Propulsion 5 | . . . 1 . . 4 Utility 6 | . . 1 . . . 5 Weapon 8 | . . 1 . 1 . 6 Highest Loss Streak 11 | . 1 2 1 1 . 11 To Critical Strikes . | . . . . . . . Average Slot Usage (%) 92 | . 98 90 94 99 100 82 Engine 9 | . 14 11 11 9 7 5 Treads 8 | . 9 26 28 . . . Leg 16 | . 18 . . 36 30 12 Device 6 | . 13 . . 4 15 5 Storage 9 | . 14 11 11 9 7 5 Processor 4 | . . . . . 7 13 Protection 10 | . . 19 22 13 7 8 Energy Gun 12 | . 11 11 10 12 14 13 Energy Cannon 3 | . . 6 10 . . 3 Ballistic Gun 8 | . 15 4 . 13 7 6 Naked Turns . | . . . . . . . Heaviest Build 66 | 12 29 38 40 42 50 66 Greatest Support 60 | 20 40 60 60 55 55 55 Greatest Overweight (x) 10 | . . . . 1 . 10 Average Overweight (x) . | . . . . . . . Largest Inventory Capacity 20 | 8 15 15 15 20 15 15 Average Capacity 14 | 7 10 15 15 15 15 14 Most Carried 15 | 5 15 15 15 15 15 15 Average Carried 13 | 3 8 14 15 14 14 13 Final Capacity 15 | 8 15 15 15 15 15 5 Final Carried 15 | 4 15 15 15 15 15 . Class Distribution -------------------- 44% | Mutant 24% | Scavenger-Tank 13% | Scavenger-Skirmisher 10% | Tank 8% | Gunner Dominant Class ---------------- Mutant | -10/Materials Mutant | -9/Materials Mutant | -9/Mines Tank | -8/Materials Scavenger-Skirmisher | -7/Factory Scavenger-Tank | -6/Factory Resources | -11 -10 -9 -9 -8 -7 -6 ----------- Run | Yrd Mat Mat Min Mat Fac Fac Matter Collected 2228 | 203 291 275 28 657 171 603 Remotely . | . . . . . . . Salvage Created 3065 | . 411 450 111 841 172 1080 Parts 157 | . 22 27 20 28 14 46 Haulers Intercepted 1 | . . . . 1 . . Recyclers Shooed 7 | . . . 1 . . 6 Parts Field Recycled . | . . . . . . . Retrieved Matter . | . . . . . . . Parts Self-Destructed . | . . . . . . . Prevented . | . . . . . . . Kills | -11 -10 -9 -9 -8 -7 -6 ------- Run | Yrd Mat Mat Min Mat Fac Fac Combat Hostiles Destroyed 75 | . 10 11 11 16 6 21 Guns 47 | . 10 6 1 12 5 13 Cannons 11 | . . 4 . . . 7 AOE 16 | . . 1 10 4 1 . Classes Destroyed 11 | . 3 2 1 4 1 . Builder 2 | . . . 1 1 . . Hauler 1 | . . . . 1 . . Recycler 6 | . 1 1 . 2 . 2 Watcher 4 | . . 1 . 2 . 1 Swarmer 35 | . 3 4 8 4 4 12 Grunt 25 | . 7 6 3 7 . 2 Brawler 2 | . . . . 1 . 1 Duelist 1 | . . . . 1 . . Sentry 4 | . . 1 . 2 1 . Hunter 3 | . . . . 1 . 2 Programmer 5 | . . . . . 1 4 Best Kill Streak 8 | . 5 6 8 8 3 5 Combat Bots Only 8 | . 5 5 7 8 3 4 Max Kills in Single Turn 4 | . 1 1 4 2 1 2 Gunslinging 1 | . . . . . . 1 Exploded 4 | . . 1 4 2 1 . Melee . | . . . . . . . Uniques/NPCs Destroyed . | . . . . . . . Combat | -11 -10 -9 -9 -8 -7 -6 -------- Run | Yrd Mat Mat Min Mat Fac Fac Hostile Shots Fired 511 | . 48 84 24 91 40 224 Missed 124 | . 10 15 7 19 19 54 Damage Taken 5515 | . 460 714 158 1041 259 2883 Core 1160 | . 92 127 . 83 . 858 Absorbed by Shields . | . . . . . . . Redirected to Shielding 56 | . . 12 3 41 . . Regen/Repaired (Parts) 243 | . 83 . . . . 160 Core Remaining (%) 83 | 100 63 . 68 84 100 . Volleys Fired 218 | . 38 44 7 57 11 61 Largest 4 | . 2 2 2 3 3 4 Hottest 259 | . 70 110 110 147 169 259 Shots Fired 550 | . 76 82 14 165 33 180 Gun 485 | . 76 56 6 161 29 157 Cannon 49 | . . 25 3 . . 21 Launcher 16 | . . 1 5 4 4 2 Special . | . . . . . . . Kinetic 221 | . 48 16 . 95 11 51 Thermal 285 | . 28 65 9 66 18 99 Explosive 16 | . . 1 5 4 4 2 Electromagnetic 28 | . . . . . . 28 Robot Hit Streak 11 | . 10 11 8 8 8 9 Robot Miss Streak 6 | . 2 5 2 6 4 5 Penetration Max . | . . . . . . . Secondary Targets 5 | . . 1 . 1 . 3 Max Gunslinging Chain 1 | . . 1 . 1 . 1 Shots Hit Robots 347 | . 52 50 9 94 20 122 Core Hits 170 | . 24 18 16 43 14 55 Critical Kills 2 | . . . . 2 . . Critical Parts Destroyed . | . . . . . . . Critical Strikes 18 | . 2 2 1 10 . 3 Burn 16 | . 2 2 1 8 . 3 Destroy 2 | . . . . 2 . . Melee Attacks . | . . . . . . . Impact . | . . . . . . . Slashing . | . . . . . . . Piercing . | . . . . . . . Sneak Attacks . | . . . . . . . Combat Hostiles . | . . . . . . . Follow-up Attacks . | . . . . . . . Damage Inflicted 7360 | . 512 655 924 1858 487 2924 Guns 4863 | . 512 413 50 1535 329 2024 Cannons 752 | . . 223 18 . . 511 Explosions 1733 | . . 19 856 323 158 377 Melee . | . . . . . . . Ramming 12 | . . . . . . 12 Kinetic 1957 | . 232 91 . 803 129 702 Thermal 3647 | . 280 545 68 732 200 1822 Explosive 1493 | . . 19 856 265 158 195 Electromagnetic 251 | . . . . 58 . 193 Impact . | . . . . . . . Slashing . | . . . . . . . Piercing . | . . . . . . . Highest Corruption 3 | . . . . . . 3 Average Corruption 1 | . . . . . . 1 Corruption Purged . | . . . . . . . Corruption Blocked . | . . . . . . . Effects 4 | . . . . . . 4 Heat Flow Errors 1 | . . . . . . 1 Parts Rejected 2 | . . . . . . 2 Misfires 1 | . . . . . . 1 Overload Shots . | . . . . . . . Overflow Damage 4 | . . . . . . 4 Projectiles . | . . . . . . . Explosions 4 | . . . . . . 4 Melee . | . . . . . . . Knockbacks . | . . . . . . . Impact . | . . . . . . . Kinetic . | . . . . . . . Secondary . | . . . . . . . Self-Inflicted Damage 154 | . . 38 . 22 . 94 Shots 4 | . . 1 . 1 . 2 Rammed 3 | . . . . . . 3 Targets Rammed 5 | . . . . . . 5 Kicked 2 | . . . . . . 2 Crushed . | . . . . . . . Highest Temperature 648 | . 382 364 214 447 66 648 Average Temperature 153 | . 145 117 95 127 28 207 Received Heat Transfer 951 | . 222 195 54 423 12 45 Effects 50 | . 6 4 . 8 . 32 Shutdowns 8 | . 2 . . . . 6 Energy Bleed 8 | . 2 1 . 1 . 4 Interference 13 | . . 2 . 6 . 5 Matter Decay 6 | . 1 1 . 1 . 3 Short Circuit 3 | . . . . . . 3 Damage (minor) 3 | . 1 . . . . 2 Damage (major) 8 | . . . . . . 8 Damage (core) 1 | . . . . . . 1 Siege Activations . | . . . . . . . Robots Corrupted . | . . . . . . . Combat Hostiles . | . . . . . . . Parts Fried 1 | . . . . . . 1 Impact Corruptions . | . . . . . . . Robots Melted 1 | . . . . . . 1 Combat Hostiles 1 | . . . . . . 1 Parts Melted 19 | . 1 2 . 5 . 11 Heat Transferred 8523 | . 951 1591 259 2072 409 3241 Parts Sabotaged . | . . . . . . . Parts Stolen . | . . . . . . . Parts Stripped . | . . . . . . . Power Chain Reactions 2 | . . . . . . 2 Alert | -11 -10 -9 -9 -8 -7 -6 ------- Run | Yrd Mat Mat Min Mat Fac Fac Peak Influence 383 | . 203 336 351 369 383 320 Initial 159 | . . . 55 58 159 89 Average 143 | . 63 161 110 154 274 159 Maximum Alert Level 2 | . 1 1 1 2 1 1 Low Security (%) 77 | 100 99 66 90 76 30 74 Level 1 22 | . . 33 9 23 69 25 Level 2 . | . . . . . . . Level 3 . | . . . . . . . Level 4 . | . . . . . . . Level 5 . | . . . . . . . High Security . | . . . . . . . Max Security . | . . . . . . . Squads Dispatched 10 | . 2 . . 3 1 4 Investigation 3 | . 1 . . . . 2 Extermination 3 | . . . . . 1 2 Reinforcement 4 | . 1 . . 3 . . Assault . | . . . . . . . Garrison . | . . . . . . . Intercept . | . . . . . . . Searches Triggered . | . . . . . . . Construction Impeded . | . . . . . . . Haulers Reinforced . | . . . . . . . Active Scanning Responses . | . . . . . . . Cargo Convoy Interrupts . | . . . . . . . Stealth | -11 -10 -9 -9 -8 -7 -6 --------- Run | Yrd Mat Mat Min Mat Fac Fac Distress Signals 8 | . . 1 . 4 . 3 Communications Jammed . | . . . . . . . Distress Signals . | . . . . . . . Times Spotted 125 | . 18 20 12 29 7 39 Peak Tracking Total 6 | . 5 5 6 6 3 6 Tactical Retreats 10 | . 1 3 . 3 1 2 Traps | -11 -10 -9 -9 -8 -7 -6 ------- Run | Yrd Mat Mat Min Mat Fac Fac Traps Triggered 2 | . 1 . . . . 1 Indirectly . | . . . . . . . Trap Hack Attempts . | . . . . . . . Triggered . | . . . . . . . Disarmed 6 | . 6 . . . . . Reprogrammed . | . . . . . . . Reused . | . . . . . . . Traps Extracted . | . . . . . . . Installed . | . . . . . . . Triggered . | . . . . . . . Machines | -11 -10 -9 -9 -8 -7 -6 ---------- Run | Yrd Mat Mat Min Mat Fac Fac Machines Disabled 8 | . . 1 . 4 . 3 Max in Single Turn 2 | . . 1 . 2 . 2 Machines Repaired . | . . . . . . . Machines Dismantled . | . . . . . . . Machines Sabotaged . | . . . . . . . Overloaded Fab Kills . | . . . . . . . Hacking | -11 -10 -9 -9 -8 -7 -6 --------- Run | Yrd Mat Mat Min Mat Fac Fac Machines Accessed 9 | . 3 1 . 1 1 3 Terminals 7 | . 2 1 . 1 1 2 Fabricators . | . . . . . . . Repair Stations 2 | . 1 . . . . 1 Recycling Units . | . . . . . . . Scanalyzers . | . . . . . . . Garrison Access . | . . . . . . . Total Hacks 28 | . 11 4 . 4 1 8 Successful 18 | . 9 3 . 1 1 4 Failed 9 | . 2 . . 3 . 4 Catastrophic 2 | . . . . . . 2 Database Lockouts 1 | . . 1 . . . . Manual . | . . . . . . . Terminals 21 | . 8 4 . 4 1 4 Fabricators . | . . . . . . . Repair Stations 7 | . 3 . . . . 4 Recycling Units . | . . . . . . . Scanalyzers . | . . . . . . . Garrison Access . | . . . . . . . Terminal Hacks 14 | . 7 3 . 1 1 2 Record 4 | . . 3 . 1 . . Prototype ID Bank 1 | . 1 . . . . . Open DSF 1 | . . . . . . 1 Locate Traps 3 | . 2 . . . . 1 Disarm Traps 1 | . 1 . . . . . Dispatch Records 1 | . 1 . . . . . Recall Investigation 2 | . 1 . . . 1 . Zone Layout 1 | . 1 . . . . . Fabricator Hacks . | . . . . . . . Repair Station Hacks 4 | . 2 . . . . 2 Scan Component 2 | . 1 . . . . 1 Repair 2 | . 1 . . . . 1 Recycling Unit Hacks . | . . . . . . . Scanalyzer . | . . . . . . . Garrison Access Hacks . | . . . . . . . Unauthorized Hacks . | . . . . . . . Terminals . | . . . . . . . Fabricators . | . . . . . . . Repair Stations . | . . . . . . . Recycling Units . | . . . . . . . Scanalyzers . | . . . . . . . Garrison Access . | . . . . . . . Data Cores Recovered . | . . . . . . . Used . | . . . . . . . Hacking Detections 5 | . 2 1 . . . 2 Full Trace Events 4 | . 2 . . . . 2 Feedback Events . | . . . . . . . Feedback Blocked . | . . . . . . . Robot Schematics Acquired . | . . . . . . . Robots Built . | . . . . . . . Authchips . | . . . . . . . Time . | . . . . . . . Total Robot Build Rating . | . . . . . . . Part Schematics Acquired . | . . . . . . . Parts Built . | . . . . . . . Authchips . | . . . . . . . Time . | . . . . . . . Total Part Build Rating . | . . . . . . . Parts Repaired 2 | . 1 . . . . 1 Time 45 | . 26 . . . . 19 Parts Recycled . | . . . . . . . Recycled Matter . | . . . . . . . Retrieved Matter . | . . . . . . . Retrieved Components . | . . . . . . . Parts Scanalyzed . | . . . . . . . Part Schematics Acquired . | . . . . . . . Parts Damaged . | . . . . . . . Bothacking | -11 -10 -9 -9 -8 -7 -6 ------------ Run | Yrd Mat Mat Min Mat Fac Fac Used RIF Installer . | . . . . . . . Robots Hacked . | . . . . . . . Non-combat . | . . . . . . . Combat . | . . . . . . . Robot Hacks Applied . | . . . . . . . Relay Couplers Released . | . . . . . . . Fabnet Peak Effective % . | . . . . . . . Robots Rewired . | . . . . . . . Allies Hacked . | . . . . . . . Hacks Repelled . | . . . . . . . Allies | -11 -10 -9 -9 -8 -7 -6 -------- Run | Yrd Mat Mat Min Mat Fac Fac Total Allies . | . . . . . . . Largest Group . | . . . . . . . Highest-Rated Group . | . . . . . . . Highest-Rated Ally . | . . . . . . . Total Orders . | . . . . . . . Ally Attacks . | . . . . . . . Total Damage . | . . . . . . . Kills . | . . . . . . . Allies Corrupted . | . . . . . . . Allies Melted . | . . . . . . . Intel | -11 -10 -9 -9 -8 -7 -6 ------- Run | Yrd Mat Mat Min Mat Fac Fac Robot Analysis Total . | . . . . . . . Derelict Logs Recovered 1 | . . . 1 . . . Drone Launches . | . . . . . . . Drone Recoveries . | . . . . . . . Exploration | -11 -10 -9 -9 -8 -7 -6 ------------- Run | Yrd Mat Mat Min Mat Fac Fac Turns Passed 4539 | 66 805 508 600 861 404 1295 Spaces Moved 2338 | 49 456 196 359 404 286 588 Core 17 | 11 . . . . . 6 Treads 694 | . 139 196 359 . . . Legs 1522 | 38 317 . . 404 286 477 Wheels . | . . . . . . . Hover 105 | . . . . . . 105 Flight . | . . . . . . . Fastest Speed 50 | 50 120 160 160 120 120 60 Average Speed 143 | 104 132 160 160 131 120 158 Slowest Speed 550 | 120 160 160 160 190 120 550 Overloaded Moves . | . . . . . . . Propulsion Burnouts . | . . . . . . . Robots Hopped . | . . . . . . . Cave-ins Triggered . | . . . . . . . Exploration Rate (%) 34 | 3 65 19 82 46 10 19 Regions Visited 6 Branch Regions 1 Pre-discovered Areas . | . . . . . . . Known Exits Taken 2 | . . . . 1 1 . Unknown Exits Taken 4 | 1 1 1 1 . . . Scrap Searched 1 | . . . 1 . . . Spaces Dug . | . . . . . . . Terrain Destroyed 131 | . . 2 46 29 12 42 Melee . | . . . . . . . Projectile 3 | . . . . . . 3 AOE 128 | . . 2 46 29 12 39 Terrain Rammed . | . . . . . . . Walls Destroyed . | . . . . . . . Machines Disabled . | . . . . . . . Actions | -11 -10 -9 -9 -8 -7 -6 --------- Run | Yrd Mat Mat Min Mat Fac Fac Total 3084 | 64 592 309 369 615 323 812 Wait 300 | . 58 37 . 96 2 107 Move 2332 | 48 455 195 358 403 285 588 Hop . | . . . . . . . Pick Up 54 | 10 14 5 . 12 8 5 Fast Attach 17 | . 5 2 . 2 . 8 Attach 34 | 6 2 4 . 3 3 16 Detach 7 | . . 2 . 1 . 4 Swap 62 | . 9 14 4 20 7 8 Drop 55 | . 11 6 . 21 7 10 Fire 218 | . 38 44 7 57 11 61 Melee . | . . . . . . . Ram 3 | . . . . . . 3 Kick 2 | . . . . . . 2 Crush . | . . . . . . . Escape Stasis . | . . . . . . . Rewire . | . . . . . . . Trap . | . . . . . . . Miscellaneous . | . . . . . . . Route ------- -11/Scrapyard -10/Materials (discovered 2 exits: *Mat / [*Min]) -9/Materials -9/Mines -8/Materials (discovered 3 exits: *Fac x3) -7/Factory -6/Factory History --------- Turn | Location | Event 6 | -11/Scrapyard | Discovered new exit (range 15) 67 | -11/Scrapyard | Entered Materials 242 | -10/Materials | Discovered new exit (range 14) 282 | -10/Materials | Discovered new exit (range 13) 307 | -10/Materials | Build established: Mutant 630 | -10/Materials | Repaired Aluminum Leg? 872 | -10/Materials | Entered another Materials area 872 | -9/Materials | Evolved 2 slots: Propulsion x1, Utility x1 920 | -9/Materials | Central database locked down 1371 | -9/Materials | Discovered new exit (range 7) 1380 | -9/Materials | Entered Mines 1475 | -9/Mines | Learned 8 Materials zone layouts 1749 | -9/Mines | Destroyed 7 combat bots 1975 | -9/Mines | Discovered new exit (range 4) 1980 | -9/Mines | Entered Materials 1980 | -8/Materials | Evolved 2 slots: Propulsion x1, Weapon x1 1981 | -8/Materials | Identified exit to Factory 2806 | -8/Materials | Destroyed 8 combat bots 2841 | -8/Materials | Entered Factory 2841 | -7/Factory | Evolved 2 slots: Utility x2 3153 | -7/Factory | Build established: Scavenger-Skirmisher 3227 | -7/Factory | Discovered new exit (range 16) 3244 | -7/Factory | Identified exit to Factory 3245 | -7/Factory | Entered another Factory area 3245 | -6/Factory | Evolved 2 slots: Utility x1, Weapon x1 3280 | -6/Factory | Repaired Imp. Light Armor Plating 3309 | -6/Factory | Identified exit to DSF 3957 | -6/Factory | Build established: Scavenger-Tank 4289 | -6/Factory | Lost 3 parts (1u2w) 4413 | -6/Factory | Build established: Gunner 4479 | -6/Factory | Core integrity fell below 50% 4503 | -6/Factory | Core integrity fell below 20% 4540 | -6/Factory | Destroyed by S-27 Virus with Autogun Last Messages --------------- 04520_ U-05 Engineer builds a Wall. 04521_ System corrupted: Med. Armor Plating rejected. 04524_ Slammed into S-27 Virus. 04524_ Destabilizing: System corrupted (+1). 04524_ U-05 Engineer lays Concrete. 04524_ U-05 Engineer builds a Wall. 04525_ Slammed into S-27 Virus. 04525_ U-05 Engineer builds a Wall. 04526_ Slammed into K-01 Serf. 04528_ U-05 Engineer lays Concrete. 04529_ U-05 Engineer builds a Wall. 04531_ U-05 Engineer lays Concrete. 04532_ R-10 Processor collects Med. Armor Plating. 04533_ U-05 Engineer lays Concrete. 04534_ R-10 Processor collects Nuclear Core. 04537_ Angular Momentum Engine destroyed. 04537_ Gravmag System destroyed. 04538_ Med. Armor Plating destroyed. Map ----- +----------------------------------------------------+ | ??????????????????????# #????????????????????????? | | ??????????????????????# #????????????????????????? | | ??????????????????????# #????????????????????????? | | ?????????????????????## ##???????????????????????? | | ?????????????????????## ###??????????????????????? | | ????????????########### # #??????????????????????? | | ????????????# #%# #??????????????????????? | | ????????????# # # #??????????????????????? | | ????????????# """ # ###??????????????????????? | | ????????????# """ = # ##???????????????????????? | | ????????????# """ # #????????????????????????? | | ????????????# !==#R#????????????????????????? | | ????????????# != #R#????????????????????????? | | ????????????# == # #????????????????????????? | | ????+#+##########+##### #####????????????????????? | | ?? R #????????????????????? | | ?? #????????????????????? | | ?? +????????????????????? | | ?? s #????????????????????? | | ??? s #????????????????????? | | ??? ####/############s##+#????????????????????? | | ??????????????????# ! s #????????????????????? | | ??????????????????# !!! #????????????????????? | | ??????????????????# """ !! #????????????????????? | | ??????????????????# """ !! #????????????????????? | | ??????????????????# """ @ #????????????????????? | | ??????????????????# "" #????????????????????? | | ??????????????????# "" = #????????????????????? | | ??????????????????# #????????????????????? | | ??????????????????###########????????????????????? | | ?????????????????????????????????????????????????? | | ?????????????????????????????????????????????????? | | ?????????????????????????????????????????????????? | | ?????????????????????????????????????????????????? | | ?????????????????????????????????????????????????? | | ?????????????????????????????????????????????????? | | ?????????????????????????????????????????????????? | | ?????????????????????????????????????????????????? | | ?????????????????????????????????????????????????? | | ?????????????????????????????????????????????????? | | ?????????????????????????????????????????????????? | | ?????????????????????????????????????????????????? | | ?????????????????????????????????????????????????? | | ?????????????????????????????????????????????????? | | ?????????????????????????????????????????????????? | | ?????????????????????????????????????????????????? | | ?????????????????????????????????????????????????? | | ?????????????????????????????????????????????????? | | ?????????????????????????????????????????????????? | | ?????????????????????????????????????????????????? | +----------------------------------------------------+ Best States ------------- Heat Dissipation 51 Energy Generation 18 Energy Capacity 300 Matter Stores 300 Matter Capacity 300 Sight Range 22 Robot Scan Range 15 Terrain Scan Density 85 Armor Coverage 375 Power Shielding 33 Propulsion Shielding 66 Evasion (%) 55 Targeting Accuracy 6 Recoil Reduction 3 Item Schematics ----------------- None Robot Schematics ------------------ None Fabricated ------------ Nothing Alien Tech Used ----------------- None Achievements -------------- GoHome() Hey, That's Mine! Challenges ------------ None Game ------ Seed AerolevGhostStorage Manual? 0 Play Time 00:54:25 Cumulative 13.5 hours Start 2024.05.27 @ 12:57:06 End 2024.05.27 @ 13:58:39 Sessions 1 Manual Loads 0 Difficulty Rogue Special Mode None Game No. 25 Rogue 22 Adventurer 3 Explorer 0 Win Type - Total 0 Types 0/0/0/0/0/0/0/0/0 Lore% 15 Gallery% 17 Achievement% 15 Wizard Run 0 Options --------- Layout 1 ASCII 0 Keyboard 0 Movement Mouse Keybinds 0 Fullscreen 2 Font 32/SmallcapsGlow Map View 50x35 Zoom Use 0% Tactical HUD 1 Map Filters NONE Filters NONE Steam 1 RUN: 382a6de7-a4ab-41bf-bbb9-79e82b1278da